[Event "Late-Titled-Tuesday-Blitz-September-19-2023"]
[Site "Chess.com"]
[Date "2023.09.19"]
[Round "1"]
[White "ritanovikova"]
[Black "Michalczak"]
[Result "1-0"]
[WhiteElo "2138"]
[BlackElo "2503"]
[TimeControl "180+1"]
[EndTime "14:08:47 PDT"]
[Termination "ritanovikova won by resignation"]

1. d4 {[%clk 0:03:00]} 1... Nf6 {[%clk 0:02:59.2]} 2. Bf4 {[%clk 0:02:59.8]}
2... d5 {[%clk 0:02:57.6]} 3. Nd2 {[%clk 0:02:57.8]} 3... c5 {[%clk 0:02:54.9]}
4. e3 {[%clk 0:02:55.9]} 4... Nc6 {[%clk 0:02:54.9]} 5. c3 {[%clk 0:02:53.2]}
5... Bf5 {[%clk 0:02:52.1]} 6. Qb3 {[%clk 0:02:51.3]} 6... Qd7 {[%clk
0:02:52.2]} 7. Ngf3 {[%clk 0:02:46.7]} 7... c4 {[%clk 0:02:43.6]} 8. Qa4 {[%clk
0:02:33.3]} 8... e6 {[%clk 0:02:39.5]} 9. h3 {[%clk 0:02:28.5]} 9... h6 {[%clk
0:02:38.1]} 10. b3 {[%clk 0:02:20.9]} 10... cxb3 {[%clk 0:02:25.2]} 11. axb3
{[%clk 0:02:18.2]} 11... Bd6 {[%clk 0:02:25.4]} 12. Bxd6 {[%clk 0:02:06.4]}
12... Qxd6 {[%clk 0:02:25.2]} 13. Bb5 {[%clk 0:02:06.9]} 13... O-O {[%clk
0:02:22.7]} 14. O-O {[%clk 0:02:00.5]} 14... Rfc8 {[%clk 0:02:21.7]} 15. Rfc1
{[%clk 0:01:56.8]} 15... a6 {[%clk 0:02:19.2]} 16. Be2 {[%clk 0:01:46.5]} 16...
b5 {[%clk 0:02:14.9]} 17. Qa3 {[%clk 0:01:30.3]} 17... Qxa3 {[%clk 0:02:12.8]}
18. Rxa3 {[%clk 0:01:31.2]} 18... b4 {[%clk 0:02:01]} 19. Rxa6 {[%clk
0:01:30.5]} 19... bxc3 {[%clk 0:01:51.9]} 20. Rxa8 {[%clk 0:01:19.1]} 20... Rxa8
{[%clk 0:01:47.9]} 21. Rxc3 {[%clk 0:01:19.1]} 21... Nb4 {[%clk 0:01:47.1]} 22.
g4 {[%clk 0:01:10.4]} 22... Be4 {[%clk 0:01:46]} 23. Ne5 {[%clk 0:01:04.6]}
23... Ra1+ {[%clk 0:01:42.9]} 24. Kh2 {[%clk 0:00:57]} 24... Rh1+ {[%clk
0:01:38.7]} 25. Kg3 {[%clk 0:00:57.3]} 25... Rg1+ {[%clk 0:01:37.9]} 26. Kh2
{[%clk 0:00:57.3]} 26... Rg2+ {[%clk 0:01:37.2]} 27. Kh1 {[%clk 0:00:51.8]}
27... Rxf2+ {[%clk 0:01:34.4]} 28. Nxe4 {[%clk 0:00:52]} 28... Nxe4 {[%clk
0:01:34.7]} 29. Rc8+ {[%clk 0:00:50.5]} 29... Kh7 {[%clk 0:01:35.2]} 30. Bd3
{[%clk 0:00:39.9]} 30... Nxd3 {[%clk 0:01:22.2]} 31. Nxd3 {[%clk 0:00:39]} 31...
Rd2 {[%clk 0:01:17.4]} 32. Ne5 {[%clk 0:00:29.7]} 32... f6 {[%clk 0:01:17.4]}
33. Nf3 {[%clk 0:00:28.9]} 33... Re2 {[%clk 0:01:09.6]} 34. b4 {[%clk
0:00:25.7]} 34... Rxe3 {[%clk 0:01:07.4]} 35. Kg2 {[%clk 0:00:19.4]} 35... Re2+
{[%clk 0:01:07.5]} 36. Kg1 {[%clk 0:00:18.7]} 36... Rb2 {[%clk 0:01:02]} 37. Rb8
{[%clk 0:00:18.4]} 37... Nc3 {[%clk 0:01:01.7]} 38. Ne1 {[%clk 0:00:16.5]} 38...
Ne2+ {[%clk 0:01:00.5]} 39. Kf1 {[%clk 0:00:16.4]} 39... Nxd4 {[%clk 0:01:01.1]}
40. Nd3 {[%clk 0:00:16.2]} 40... Rb3 {[%clk 0:00:57.1]} 41. Nc5 {[%clk
0:00:15.5]} 41... Rb1+ {[%clk 0:00:43.3]} 42. Kg2 {[%clk 0:00:14.7]} 42... Nc6
{[%clk 0:00:40.6]} 43. Rc8 {[%clk 0:00:10.1]} 43... Nxb4 {[%clk 0:00:39.3]} 44.
Nxe6 {[%clk 0:00:09.8]} 44... Rb2+ {[%clk 0:00:35.4]} 45. Kg3 {[%clk 0:00:09.5]}
45... Kg6 {[%clk 0:00:31.4]} 46. Nf8+ {[%clk 0:00:09.2]} 46... Kf7 {[%clk
0:00:30.6]} 47. Nd7 {[%clk 0:00:09.6]} 47... Rc2 {[%clk 0:00:26.9]} 48. Rb8
{[%clk 0:00:09.2]} 48... Nd3 {[%clk 0:00:19.7]} 49. Rb7 {[%clk 0:00:09]} 49...
Ke6 {[%clk 0:00:19.2]} 50. Nf8+ {[%clk 0:00:08.4]} 50... Ke5 {[%clk 0:00:19.6]}
51. Rxg7 {[%clk 0:00:08.6]} 51... Ne1 {[%clk 0:00:15.9]} 52. Ng6+ {[%clk
0:00:08.4]} 52... Ke4 {[%clk 0:00:15.9]} 53. Re7+ {[%clk 0:00:08.8]} 53... Kd3
{[%clk 0:00:16.4]} 54. Rxe1 {[%clk 0:00:09.6]} 54... d4 {[%clk 0:00:16]} 55.
Nf4+ {[%clk 0:00:09]} 55... Kc3 {[%clk 0:00:15.6]} 56. Rd1 {[%clk 0:00:09.1]}
56... Ra2 {[%clk 0:00:11.5]} 57. Rd3+ {[%clk 0:00:09.4]} 57... Kc4 {[%clk
0:00:12.1]} 58. Rd1 {[%clk 0:00:07.9]} 58... Ra3+ {[%clk 0:00:11.9]} 59. Kh4
{[%clk 0:00:07.8]} 59... d3 {[%clk 0:00:12.3]} 60. Rxd3 {[%clk 0:00:06]} 60...
Rxd3 {[%clk 0:00:07.9]} 61. Nxd3 {[%clk 0:00:06.9]} 61... Kxd3 {[%clk
0:00:08.8]} 62. Kh5 {[%clk 0:00:07.6]} 62... Ke4 {[%clk 0:00:08.8]} 63. Kxh6
{[%clk 0:00:08]} 63... Kf4 {[%clk 0:00:09.4]} 64. Kg6 {[%clk 0:00:07.5]} 64...
Kg3 {[%clk 0:00:09.6]} 65. Kxf6 {[%clk 0:00:07.9]} 65... Kxh3 {[%clk 0:00:09.1]}
66. g5 {[%clk 0:00:08.8]} 1-0

[Event "Late-Titled-Tuesday-Blitz-September-19-2023"]
[Site "Chess.com"]
[Date "2023.09.19"]
[Round "1"]
[White "GeorgiosSouleidis"]
[Black "Njal28"]
[Result "0-1"]
[WhiteElo "2507"]
[BlackElo "3111"]
[TimeControl "180+1"]
[EndTime "14:08:48 PDT"]
[Termination "Njal28 won by resignation"]

1. e4 {[%clk 0:03:00.2]} 1... c5 {[%clk 0:02:59]} 2. Be2 {[%clk 0:02:59.9]} 2...
Nc6 {[%clk 0:02:58.9]} 3. d3 {[%clk 0:03:00.4]} 3... g6 {[%clk 0:02:59.2]} 4. f4
{[%clk 0:03:00.8]} 4... Bg7 {[%clk 0:02:59.7]} 5. Nf3 {[%clk 0:03:01.7]} 5... d6
{[%clk 0:02:59.8]} 6. O-O {[%clk 0:03:02.3]} 6... e6 {[%clk 0:03:00.3]} 7. c3
{[%clk 0:03:02.9]} 7... Nge7 {[%clk 0:03:00.9]} 8. Be3 {[%clk 0:03:03.2]} 8...
O-O {[%clk 0:03:01.4]} 9. d4 {[%clk 0:03:03.8]} 9... b6 {[%clk 0:03:01.1]} 10.
a3 {[%clk 0:03:01.8]} 10... Bb7 {[%clk 0:03:01.4]} 11. Nbd2 {[%clk 0:03:00.2]}
11... Rc8 {[%clk 0:02:55.5]} 12. Rc1 {[%clk 0:02:59.2]} 12... Qd7 {[%clk
0:02:49.2]} 13. Bd3 {[%clk 0:02:55.7]} 13... Rfd8 {[%clk 0:02:46]} 14. Qe2
{[%clk 0:02:55.8]} 14... Rc7 {[%clk 0:02:39.6]} 15. dxc5 {[%clk 0:02:40.4]}
15... dxc5 {[%clk 0:02:31.5]} 16. Bb5 {[%clk 0:02:39]} 16... Qc8 {[%clk
0:02:32.1]} 17. Rcd1 {[%clk 0:02:21.1]} 17... Na5 {[%clk 0:02:02.7]} 18. Bd3
{[%clk 0:02:13.7]} 18... Rcd7 {[%clk 0:02:01.4]} 19. Bb5 {[%clk 0:01:53]} 19...
Bc6 {[%clk 0:01:59.8]} 20. Bxc6 {[%clk 0:01:51.3]} 20... Naxc6 {[%clk
0:01:57.4]} 21. Nc4 {[%clk 0:01:01.6]} 21... Qa6 {[%clk 0:01:53.8]} 22. Rxd7
{[%clk 0:00:56.3]} 22... Rxd7 {[%clk 0:01:54.7]} 23. Kf2 {[%clk 0:00:44.9]}
23... Na5 {[%clk 0:01:10.3]} 24. Nxa5 {[%clk 0:00:42.6]} 24... Qxa5 {[%clk
0:01:11.2]} 25. Rd1 {[%clk 0:00:41.2]} 25... Qa4 {[%clk 0:01:11.7]} 26. Rxd7
{[%clk 0:00:40.1]} 26... Qxd7 {[%clk 0:01:12.6]} 27. Qd2 {[%clk 0:00:40.1]}
27... Qxd2+ {[%clk 0:01:12.3]} 28. Nxd2 {[%clk 0:00:40.5]} 28... Kf8 {[%clk
0:01:10.7]} 29. Ke2 {[%clk 0:00:38.9]} 29... Ke8 {[%clk 0:01:10.7]} 30. Kd3
{[%clk 0:00:38.8]} 30... Kd7 {[%clk 0:01:07.9]} 31. b4 {[%clk 0:00:33.5]} 31...
cxb4 {[%clk 0:01:07]} 32. cxb4 {[%clk 0:00:34]} 32... e5 {[%clk 0:01:03.4]} 33.
g3 {[%clk 0:00:31.6]} 33... f5 {[%clk 0:00:51]} 34. b5 {[%clk 0:00:23.3]} 34...
fxe4+ {[%clk 0:00:47]} 35. Kxe4 {[%clk 0:00:20.3]} 35... Nf5 {[%clk 0:00:47.9]}
36. Nc4 {[%clk 0:00:17.7]} 36... Nxe3 {[%clk 0:00:37.9]} 37. Kxe3 {[%clk
0:00:17.1]} 37... Ke6 {[%clk 0:00:32.8]} 38. Ke4 {[%clk 0:00:15.4]} 38... exf4
{[%clk 0:00:33]} 39. gxf4 {[%clk 0:00:15.7]} 39... h6 {[%clk 0:00:24.6]} 40. a4
{[%clk 0:00:14.9]} 40... Bf6 {[%clk 0:00:24.3]} 41. h3 {[%clk 0:00:15]} 41...
Bg7 {[%clk 0:00:24.4]} 42. Ne3 {[%clk 0:00:13.8]} 42... Kd6 {[%clk 0:00:20.3]}
43. f5 {[%clk 0:00:04.1]} 43... g5 {[%clk 0:00:20.5]} 44. Ng4 {[%clk 0:00:03.1]}
44... Ke7 {[%clk 0:00:20.3]} 45. Kd5 {[%clk 0:00:03.3]} 45... h5 {[%clk
0:00:19.6]} 46. Ne3 {[%clk 0:00:02.6]} 46... Bb2 {[%clk 0:00:14.1]} 47. Ke4
{[%clk 0:00:02.2]} 47... Kf7 {[%clk 0:00:13.5]} 48. Nd5 {[%clk 0:00:03.1]} 48...
Ba3 {[%clk 0:00:11.8]} 49. Kf3 {[%clk 0:00:03.3]} 49... Bd6 {[%clk 0:00:11]} 50.
Ke4 {[%clk 0:00:03.2]} 50... Bg3 {[%clk 0:00:10.9]} 51. Kf3 {[%clk 0:00:03.4]}
51... Be5 {[%clk 0:00:11.6]} 52. Ke4 {[%clk 0:00:04]} 52... Bd6 {[%clk
0:00:12.3]} 53. Kf3 {[%clk 0:00:04.6]} 53... Ke8 {[%clk 0:00:12.9]} 54. Ne3
{[%clk 0:00:04.6]} 54... Ke7 {[%clk 0:00:12.8]} 55. Nd5+ {[%clk 0:00:05.2]}
55... Kf7 {[%clk 0:00:13.5]} 56. Ke4 {[%clk 0:00:05.2]} 56... g4 {[%clk
0:00:13.4]} 57. hxg4 {[%clk 0:00:06.1]} 57... hxg4 {[%clk 0:00:14.3]} 58. Ke3
{[%clk 0:00:06.6]} 58... Be5 {[%clk 0:00:13.3]} 59. Kf2 {[%clk 0:00:06.6]} 59...
Kg7 {[%clk 0:00:12.9]} 60. Kg2 {[%clk 0:00:07.1]} 60... Kh6 {[%clk 0:00:13.2]}
61. Kf2 {[%clk 0:00:06.2]} 61... Kg5 {[%clk 0:00:13.5]} 62. Ne7 {[%clk 0:00:05]}
62... Bd6 {[%clk 0:00:09.7]} 63. Nc6 {[%clk 0:00:05.6]} 63... Kxf5 {[%clk
0:00:06.1]} 64. Nxa7 {[%clk 0:00:05.8]} 64... Ke4 {[%clk 0:00:06.2]} 65. Nc8
{[%clk 0:00:05.2]} 65... Bc5+ {[%clk 0:00:05.2]} 66. Kg3 {[%clk 0:00:05.6]}
66... Kf5 {[%clk 0:00:06]} 67. Na7 {[%clk 0:00:03.6]} 67... Bd6+ {[%clk
0:00:06.1]} 68. Kg2 {[%clk 0:00:04.2]} 68... Ke4 {[%clk 0:00:06.2]} 69. Nc8
{[%clk 0:00:04.7]} 69... Bc7 {[%clk 0:00:06.1]} 70. Nxb6 {[%clk 0:00:03.9]}
70... Bxb6 {[%clk 0:00:05.9]} 71. Kg3 {[%clk 0:00:04.8]} 71... Kf5 {[%clk
0:00:06.3]} 72. Kg2 {[%clk 0:00:04.1]} 72... Bc7 {[%clk 0:00:06.4]} 73. Kf2
{[%clk 0:00:03.8]} 73... Kf4 {[%clk 0:00:06.9]} 74. Kg2 {[%clk 0:00:04.1]} 74...
g3 {[%clk 0:00:07.5]} 75. Kf1 {[%clk 0:00:04.2]} 75... Kf3 {[%clk 0:00:07.9]}
76. Ke1 {[%clk 0:00:02.4]} 76... Ba5+ {[%clk 0:00:07.6]} 77. Kd1 {[%clk
0:00:02.5]} 77... g2 {[%clk 0:00:08.5]} 78. Kc2 {[%clk 0:00:03.2]} 78... g1=Q
{[%clk 0:00:09.2]} 0-1

[Event "Late-Titled-Tuesday-Blitz-September-19-2023"]
[Site "Chess.com"]
[Date "2023.09.19"]
[Round "1"]
[White "Flawless_Fighter"]
[Black "Taran2004"]
[Result "1/2-1/2"]
[WhiteElo "2697"]
[BlackElo "2426"]
[TimeControl "180+1"]
[EndTime "14:09:11 PDT"]
[Termination "Game drawn - insufficient material"]

1. c4 {[%clk 0:02:57.9]} 1... Nf6 {[%clk 0:02:59.1]} 2. b3 {[%clk 0:02:57.8]}
2... g6 {[%clk 0:02:59]} 3. Bb2 {[%clk 0:02:58.1]} 3... Bg7 {[%clk 0:02:59.7]}
4. Nf3 {[%clk 0:02:58.3]} 4... O-O {[%clk 0:03:00]} 5. g3 {[%clk 0:02:58.3]}
5... d5 {[%clk 0:03:00.2]} 6. Bg2 {[%clk 0:02:57.8]} 6... c5 {[%clk 0:02:57.8]}
7. cxd5 {[%clk 0:02:56.6]} 7... Nxd5 {[%clk 0:02:58.7]} 8. Bxg7 {[%clk
0:02:56.8]} 8... Kxg7 {[%clk 0:02:59.5]} 9. O-O {[%clk 0:02:56.7]} 9... Nc6
{[%clk 0:02:59.4]} 10. d4 {[%clk 0:02:56.9]} 10... cxd4 {[%clk 0:02:46.7]} 11.
Nxd4 {[%clk 0:02:56.3]} 11... Nxd4 {[%clk 0:02:47.1]} 12. Qxd4+ {[%clk
0:02:56.5]} 12... Nf6 {[%clk 0:02:47.6]} 13. Rd1 {[%clk 0:02:49.9]} 13... Bg4
{[%clk 0:02:39.4]} 14. Nc3 {[%clk 0:02:40.5]} 14... Qa5 {[%clk 0:02:29.2]} 15.
h3 {[%clk 0:02:34.3]} 15... Rfd8 {[%clk 0:01:52.6]} 16. Qe3 {[%clk 0:02:31.5]}
16... Be6 {[%clk 0:01:52.8]} 17. Bxb7 {[%clk 0:02:26.3]} 17... Rab8 {[%clk
0:01:53]} 18. Bg2 {[%clk 0:02:26.1]} 18... Rxd1+ {[%clk 0:01:44.7]} 19. Rxd1
{[%clk 0:02:25.1]} 19... Rc8 {[%clk 0:01:45.3]} 20. Na4 {[%clk 0:01:51.6]} 20...
Rc2 {[%clk 0:01:36.9]} 21. g4 {[%clk 0:01:42.8]} 21... h6 {[%clk 0:01:18.3]} 22.
Bf3 {[%clk 0:01:39]} 22... Rxa2 {[%clk 0:01:17.5]} 23. Nc5 {[%clk 0:01:38.4]}
23... Qb6 {[%clk 0:01:13.1]} 24. Nxe6+ {[%clk 0:01:31.3]} 24... Qxe6 {[%clk
0:01:14]} 25. Qxe6 {[%clk 0:01:31.5]} 25... fxe6 {[%clk 0:01:14.9]} 26. Rd4
{[%clk 0:01:26.6]} 26... a5 {[%clk 0:01:11.8]} 27. e3 {[%clk 0:01:13.4]} 27...
Rb2 {[%clk 0:01:11.8]} 28. Ra4 {[%clk 0:01:13.3]} 28... Rxb3 {[%clk 0:01:10]}
29. Rxa5 {[%clk 0:01:13.4]} 29... g5 {[%clk 0:01:09.6]} 30. Kg2 {[%clk
0:01:12.5]} 30... Rb2 {[%clk 0:01:08.8]} 31. Ra6 {[%clk 0:01:11.5]} 31... Kf7
{[%clk 0:01:07.6]} 32. Ra8 {[%clk 0:01:08.3]} 32... Nd7 {[%clk 0:01:06.6]} 33.
Be4 {[%clk 0:01:03.1]} 33... Nc5 {[%clk 0:01:01.5]} 34. Kf3 {[%clk 0:00:43.2]}
34... Nxe4 {[%clk 0:01:00.4]} 35. Kxe4 {[%clk 0:00:43.7]} 35... Rxf2 {[%clk
0:01:00.8]} 36. Rh8 {[%clk 0:00:42.3]} 36... Kg7 {[%clk 0:00:56.9]} 37. Re8
{[%clk 0:00:42.7]} 37... Rh2 {[%clk 0:00:56.7]} 38. Rxe7+ {[%clk 0:00:40]} 38...
Kf6 {[%clk 0:00:56.7]} 39. Re8 {[%clk 0:00:36.5]} 39... Rxh3 {[%clk 0:00:57]}
40. Rf8+ {[%clk 0:00:32.9]} 40... Kg7 {[%clk 0:00:57]} 41. Re8 {[%clk
0:00:31.7]} 41... Kf7 {[%clk 0:00:56.6]} 42. Rh8 {[%clk 0:00:31.3]} 42... Rh4
{[%clk 0:00:53.1]} 43. Kf3 {[%clk 0:00:30.9]} 43... Kg7 {[%clk 0:00:53]} 44. Re8
{[%clk 0:00:30.6]} 44... Rh3+ {[%clk 0:00:52.6]} 45. Kf2 {[%clk 0:00:30.6]}
45... Kf6 {[%clk 0:00:51.9]} 46. Ra8 {[%clk 0:00:28.6]} 46... h5 {[%clk
0:00:50.3]} 47. gxh5 {[%clk 0:00:28]} 47... Rxh5 {[%clk 0:00:51.2]} 48. Rf8+
{[%clk 0:00:27.8]} 48... Ke5 {[%clk 0:00:51]} 49. Rg8 {[%clk 0:00:28.4]} 49...
Kf6 {[%clk 0:00:45]} 50. Rf8+ {[%clk 0:00:28.4]} 50... Kg7 {[%clk 0:00:45.3]}
51. Ra8 {[%clk 0:00:28.5]} 51... Rh6 {[%clk 0:00:42.5]} 52. Ra7+ {[%clk
0:00:28.3]} 52... Kf6 {[%clk 0:00:42.4]} 53. Ra8 {[%clk 0:00:29.2]} 53... Rg6
{[%clk 0:00:42.3]} 54. Kg3 {[%clk 0:00:29]} 54... Ke5 {[%clk 0:00:42.5]} 55. Kf2
{[%clk 0:00:24.3]} 55... Rf6+ {[%clk 0:00:39.6]} 56. Ke2 {[%clk 0:00:18.5]}
56... g4 {[%clk 0:00:39.3]} 57. Rg8 {[%clk 0:00:17.6]} 57... Kf5 {[%clk
0:00:38.8]} 58. Kf2 {[%clk 0:00:17.7]} 58... Rg6 {[%clk 0:00:35.4]} 59. Rf8+
{[%clk 0:00:18]} 59... Ke4 {[%clk 0:00:34.5]} 60. Rf4+ {[%clk 0:00:18.2]} 60...
Ke5 {[%clk 0:00:34.7]} 61. Ra4 {[%clk 0:00:18.1]} 61... Rf6+ {[%clk 0:00:34.6]}
62. Ke2 {[%clk 0:00:09.9]} 62... Kf5 {[%clk 0:00:33.1]} 63. Ra8 {[%clk
0:00:07.7]} 63... e5 {[%clk 0:00:31.8]} 64. Kf2 {[%clk 0:00:07.4]} 64... Ke4+
{[%clk 0:00:31.3]} 65. Ke2 {[%clk 0:00:07.9]} 65... g3 {[%clk 0:00:29.5]} 66.
Ra4+ {[%clk 0:00:07.4]} 66... Kd5 {[%clk 0:00:25.5]} 67. Rg4 {[%clk 0:00:07.5]}
67... Rf2+ {[%clk 0:00:22.8]} 68. Ke1 {[%clk 0:00:07.8]} 68... Ra2 {[%clk
0:00:22.3]} 69. Rxg3 {[%clk 0:00:07.4]} 69... Ke4 {[%clk 0:00:22.9]} 70. Rh3
{[%clk 0:00:06.3]} 70... Kd3 {[%clk 0:00:22.6]} 71. e4+ {[%clk 0:00:05.9]} 71...
Kxe4 {[%clk 0:00:21.1]} 72. Rb3 {[%clk 0:00:06.5]} 72... Kf4 {[%clk 0:00:20.9]}
73. Rc3 {[%clk 0:00:04.9]} 73... e4 {[%clk 0:00:20.4]} 74. Rb3 {[%clk
0:00:05.6]} 74... Rh2 {[%clk 0:00:19.6]} 75. Ra3 {[%clk 0:00:05.5]} 75... Rg2
{[%clk 0:00:19.6]} 76. Rb3 {[%clk 0:00:06]} 76... Rg6 {[%clk 0:00:16.3]} 77. Ra3
{[%clk 0:00:05.9]} 77... Rd6 {[%clk 0:00:16.9]} 78. Rb3 {[%clk 0:00:06.2]} 78...
e3 {[%clk 0:00:17]} 79. Rb8 {[%clk 0:00:05.9]} 79... Rf6 {[%clk 0:00:13.9]} 80.
Rc8 {[%clk 0:00:02.8]} 80... Kf3 {[%clk 0:00:14.2]} 81. Rb8 {[%clk 0:00:03.1]}
81... Rf4 {[%clk 0:00:13.9]} 82. Rc8 {[%clk 0:00:03.5]} 82... e2 {[%clk
0:00:12.7]} 83. Re8 {[%clk 0:00:03.6]} 83... Rh4 {[%clk 0:00:11.1]} 84. Rf8+
{[%clk 0:00:03.8]} 84... Rf4 {[%clk 0:00:10.9]} 85. Rxf4+ {[%clk 0:00:03.9]}
85... Kxf4 {[%clk 0:00:11.8]} 86. Kxe2 {[%clk 0:00:04.6]} 1/2-1/2

[Event "Late-Titled-Tuesday-Blitz-September-19-2023"]
[Site "Chess.com"]
[Date "2023.09.19"]
[Round "1"]
[White "biostatistician"]
[Black "aranibos"]
[Result "1/2-1/2"]
[WhiteElo "2574"]
[BlackElo "2297"]
[TimeControl "180+1"]
[EndTime "14:09:28 PDT"]
[Termination "Game drawn by repetition"]

1. d4 {[%clk 0:02:59.3]} 1... d5 {[%clk 0:02:59.1]} 2. Nf3 {[%clk 0:03:00.2]}
2... Nf6 {[%clk 0:02:58.1]} 3. c4 {[%clk 0:03:01.1]} 3... c6 {[%clk 0:02:57.6]}
4. cxd5 {[%clk 0:03:01]} 4... cxd5 {[%clk 0:02:56.3]} 5. Nc3 {[%clk 0:03:01.9]}
5... a6 {[%clk 0:02:56]} 6. Bf4 {[%clk 0:03:01.9]} 6... Nc6 {[%clk 0:02:56.2]}
7. Rc1 {[%clk 0:03:01.1]} 7... Bg4 {[%clk 0:02:55.1]} 8. Ne5 {[%clk 0:03:00.8]}
8... Bh5 {[%clk 0:02:47]} 9. Qb3 {[%clk 0:02:57.9]} 9... Ra7 {[%clk 0:02:33.8]}
10. e3 {[%clk 0:02:54.8]} 10... e6 {[%clk 0:02:33.7]} 11. Bd3 {[%clk 0:02:22.5]}
11... Be7 {[%clk 0:02:21.8]} 12. O-O {[%clk 0:02:22.2]} 12... O-O {[%clk
0:02:20]} 13. Na4 {[%clk 0:02:21.6]} 13... Nxe5 {[%clk 0:02:16.9]} 14. Bxe5
{[%clk 0:02:19.9]} 14... Nd7 {[%clk 0:02:14.7]} 15. Bc7 {[%clk 0:02:18.8]} 15...
Qe8 {[%clk 0:02:09.2]} 16. Nb6 {[%clk 0:02:15.8]} 16... Bg6 {[%clk 0:01:59.6]}
17. Bxg6 {[%clk 0:02:11.1]} 17... hxg6 {[%clk 0:01:59.4]} 18. Rc3 {[%clk
0:02:11.4]} 18... Bd8 {[%clk 0:01:52.3]} 19. Rfc1 {[%clk 0:02:04.9]} 19... Bxc7
{[%clk 0:01:41.1]} 20. Rxc7 {[%clk 0:02:05.8]} 20... Nxb6 {[%clk 0:01:41]} 21.
Qxb6 {[%clk 0:02:05.4]} 21... Qa8 {[%clk 0:01:41.6]} 22. h4 {[%clk 0:02:02.2]}
22... a5 {[%clk 0:01:38.6]} 23. a4 {[%clk 0:02:00.5]} 23... Rb8 {[%clk
0:01:35.1]} 24. Qd6 {[%clk 0:01:57.3]} 24... b6 {[%clk 0:01:16.2]} 25. Rxa7
{[%clk 0:01:15.5]} 25... Qxa7 {[%clk 0:01:15.4]} 26. Rc7 {[%clk 0:01:16]} 26...
Qa6 {[%clk 0:01:10.2]} 27. Rxf7 {[%clk 0:01:06.1]} 27... Kxf7 {[%clk 0:01:06.5]}
28. Qc7+ {[%clk 0:01:00.5]} 28... Kf6 {[%clk 0:01:01]} 29. Qxb8 {[%clk
0:01:01.4]} 29... Kf7 {[%clk 0:00:54.8]} 30. Qc7+ {[%clk 0:00:56.1]} 30... Kg8
{[%clk 0:00:49.1]} 31. Qd7 {[%clk 0:00:52.6]} 31... Qe2 {[%clk 0:00:45.2]} 32.
Qxe6+ {[%clk 0:00:52.2]} 32... Kh7 {[%clk 0:00:45.8]} 33. g3 {[%clk 0:00:43.4]}
33... Qxb2 {[%clk 0:00:44.2]} 34. Qxd5 {[%clk 0:00:43.6]} 34... Qa1+ {[%clk
0:00:43.8]} 35. Kg2 {[%clk 0:00:41.7]} 35... Qxa4 {[%clk 0:00:44.4]} 36. h5
{[%clk 0:00:42.2]} 36... gxh5 {[%clk 0:00:43.3]} 37. Qxh5+ {[%clk 0:00:43.1]}
37... Kg8 {[%clk 0:00:43.6]} 38. Qd5+ {[%clk 0:00:42.1]} 38... Kh7 {[%clk
0:00:43.9]} 39. Qf5+ {[%clk 0:00:42.2]} 39... Kg8 {[%clk 0:00:43.7]} 40. d5
{[%clk 0:00:42.6]} 40... Qe8 {[%clk 0:00:42.7]} 41. d6 {[%clk 0:00:40.4]} 41...
Qc6+ {[%clk 0:00:42.6]} 42. e4 {[%clk 0:00:39.7]} 42... Qxd6 {[%clk 0:00:43]}
43. e5 {[%clk 0:00:37.3]} 43... Qd5+ {[%clk 0:00:42.6]} 44. Kh2 {[%clk 0:00:34]}
44... a4 {[%clk 0:00:39.7]} 45. Qc8+ {[%clk 0:00:31.6]} 45... Kh7 {[%clk
0:00:38.6]} 46. Qc2+ {[%clk 0:00:30.5]} 46... Kh8 {[%clk 0:00:34.4]} 47. Qxa4
{[%clk 0:00:28.2]} 47... Qxe5 {[%clk 0:00:34.8]} 48. Qh4+ {[%clk 0:00:26]} 48...
Kg8 {[%clk 0:00:32.9]} 49. Qd8+ {[%clk 0:00:26.1]} 49... Kh7 {[%clk 0:00:31.5]}
50. Qxb6 {[%clk 0:00:27]} 50... Qe2 {[%clk 0:00:29.5]} 51. Qb1+ {[%clk 0:00:25]}
51... Kh8 {[%clk 0:00:28.1]} 52. Qf5 {[%clk 0:00:25.2]} 52... Qe8 {[%clk
0:00:24.8]} 53. Kh3 {[%clk 0:00:23.2]} 53... g6 {[%clk 0:00:21.2]} 54. Qf6+
{[%clk 0:00:22.7]} 54... Kh7 {[%clk 0:00:21]} 55. Kg2 {[%clk 0:00:23]} 55...
Qa8+ {[%clk 0:00:19.7]} 56. Qf3 {[%clk 0:00:23.9]} 56... Qe8 {[%clk 0:00:19.4]}
57. Qd5 {[%clk 0:00:22.7]} 57... Kg7 {[%clk 0:00:17.5]} 58. g4 {[%clk
0:00:22.1]} 58... Qe7 {[%clk 0:00:16.6]} 59. Kg3 {[%clk 0:00:21.7]} 59... Qc7+
{[%clk 0:00:15.1]} 60. Kg2 {[%clk 0:00:21.9]} 60... Qa7 {[%clk 0:00:15.1]} 61.
Qe4 {[%clk 0:00:21.8]} 61... Qc7 {[%clk 0:00:13.4]} 62. Kf3 {[%clk 0:00:21.2]}
62... Kh7 {[%clk 0:00:13.3]} 63. Qf4 {[%clk 0:00:20.7]} 63... Qc6+ {[%clk
0:00:13.1]} 64. Kg3 {[%clk 0:00:20.2]} 64... Qc2 {[%clk 0:00:13.5]} 65. Qf7+
{[%clk 0:00:20.1]} 65... Kh6 {[%clk 0:00:13.8]} 66. Qf8+ {[%clk 0:00:19.4]}
66... Kh7 {[%clk 0:00:13.7]} 67. Qf7+ {[%clk 0:00:14.3]} 67... Kh6 {[%clk
0:00:13.7]} 68. Qf4+ {[%clk 0:00:14.8]} 68... Kh7 {[%clk 0:00:13.6]} 69. Qe3
{[%clk 0:00:15.7]} 69... Qc7+ {[%clk 0:00:12.2]} 70. Kg2 {[%clk 0:00:16]} 70...
Qc6+ {[%clk 0:00:12.7]} 71. Qf3 {[%clk 0:00:16.5]} 71... Qd6 {[%clk 0:00:13.2]}
72. Kh3 {[%clk 0:00:15.6]} 72... Qe7 {[%clk 0:00:12.8]} 73. Qf4 {[%clk 0:00:15]}
73... Qd7 {[%clk 0:00:12.6]} 74. Kh4 {[%clk 0:00:14.5]} 74... Qe7+ {[%clk
0:00:12.4]} 75. Qg5 {[%clk 0:00:14.6]} 75... Qd7 {[%clk 0:00:12.7]} 76. Kg3
{[%clk 0:00:13]} 76... Qb7 {[%clk 0:00:12.2]} 77. Qf4 {[%clk 0:00:13.9]} 77...
Qd7 {[%clk 0:00:11.8]} 78. Qe5 {[%clk 0:00:13.5]} 78... Qf7 {[%clk 0:00:11.8]}
79. f3 {[%clk 0:00:14]} 79... Qd7 {[%clk 0:00:11.3]} 80. g5 {[%clk 0:00:14.3]}
80... Qd1 {[%clk 0:00:11.1]} 81. Qe7+ {[%clk 0:00:14.5]} 81... Kh8 {[%clk
0:00:10.6]} 82. Qf8+ {[%clk 0:00:14.5]} 82... Kh7 {[%clk 0:00:10.7]} 83. Qh6+
{[%clk 0:00:15.4]} 83... Kg8 {[%clk 0:00:10.6]} 84. Qxg6+ {[%clk 0:00:16.3]}
84... Kh8 {[%clk 0:00:10.9]} 85. Qf6+ {[%clk 0:00:17.2]} 85... Kg8 {[%clk
0:00:10.5]} 86. Kg4 {[%clk 0:00:17.4]} 86... Qg1+ {[%clk 0:00:10.3]} 87. Kf4
{[%clk 0:00:16.2]} 87... Qc1+ {[%clk 0:00:10.1]} 88. Kf5 {[%clk 0:00:16.5]}
88... Qc2+ {[%clk 0:00:10]} 89. Ke6 {[%clk 0:00:14.2]} 89... Qb3+ {[%clk
0:00:08.9]} 90. Ke7 {[%clk 0:00:14.7]} 90... Qb7+ {[%clk 0:00:08.4]} 91. Ke8
{[%clk 0:00:14.5]} 91... Qc8+ {[%clk 0:00:08.3]} 92. Qd8 {[%clk 0:00:14.6]}
92... Qe6+ {[%clk 0:00:08.7]} 93. Qe7 {[%clk 0:00:14.4]} 93... Qc8+ {[%clk
0:00:09.2]} 94. Qd8 {[%clk 0:00:13.6]} 94... Qe6+ {[%clk 0:00:09.8]} 95. Qe7
{[%clk 0:00:14.1]} 95... Qc8+ {[%clk 0:00:10.2]} 96. Qd8 {[%clk 0:00:14.5]}
1/2-1/2